[Event "Live Chess"]
[Site "Chess.com"]
[Date "2023.05.21"]
[Round "-"]
[White "Doge_Dandolo"]
[Black "Singapourfeuj"]
[Result "0-1"]
[WhiteElo "1920"]
[BlackElo "2163"]
[TimeControl "300"]
[EndTime "18:27:03 PDT"]
[Termination "Singapourfeuj won by resignation"]

1. Nf3 {[%clk 0:04:58.8]} 1... Nf6 {[%clk 0:04:58.9]} 2. c4 {[%clk 0:04:58]}
2... g6 {[%clk 0:04:58]} 3. Nc3 {[%clk 0:04:55.9]} 3... Bg7 {[%clk 0:04:57.1]}
4. e4 {[%clk 0:04:55]} 4... d6 {[%clk 0:04:56]} 5. d4 {[%clk 0:04:54.3]} 5...
O-O {[%clk 0:04:55]} 6. Be2 {[%clk 0:04:53.8]} 6... e5 {[%clk 0:04:54]} 7. dxe5
{[%clk 0:04:53]} 7... dxe5 {[%clk 0:04:53]} 8. Qxd8 {[%clk 0:04:52.6]} 8... Rxd8
{[%clk 0:04:52.3]} 9. Bg5 {[%clk 0:04:51.6]} 9... Nbd7 {[%clk 0:04:51.5]} 10.
Nd5 {[%clk 0:04:49]} 10... c6 {[%clk 0:04:48]} 11. Nxf6+ {[%clk 0:04:45.1]}
11... Bxf6 {[%clk 0:04:44.6]} 12. Be3 {[%clk 0:04:42.1]} 12... Re8 {[%clk
0:04:41.3]} 13. O-O-O {[%clk 0:04:39.5]} 13... Nf8 {[%clk 0:04:40]} 14. Kc2
{[%clk 0:04:22.9]} 14... Bg4 {[%clk 0:04:37.9]} 15. h3 {[%clk 0:04:21.3]} 15...
Bxf3 {[%clk 0:04:36.7]} 16. Bxf3 {[%clk 0:04:20.4]} 16... Ne6 {[%clk 0:04:35.9]}
17. Bg4 {[%clk 0:04:15.3]} 17... Nd4+ {[%clk 0:04:34.2]} 18. Bxd4 {[%clk
0:04:08.5]} 18... exd4 {[%clk 0:04:33.1]} 19. Rhe1 {[%clk 0:04:04.3]} 19... h5
{[%clk 0:04:31.8]} 20. Be2 {[%clk 0:04:01.6]} 20... c5 {[%clk 0:04:30.8]} 21.
Bd3 {[%clk 0:03:59.8]} 21... a6 {[%clk 0:04:28.2]} 22. f4 {[%clk 0:03:55.2]}
22... h4 {[%clk 0:04:26.3]} 23. e5 {[%clk 0:03:52.6]} 23... Bd8 {[%clk
0:04:23.9]} 24. Be4 {[%clk 0:03:50.8]} 24... Rb8 {[%clk 0:04:22]} 25. Bd5 {[%clk
0:03:48.9]} 25... Ba5 {[%clk 0:04:20.5]} 26. Rf1 {[%clk 0:03:46.1]} 26... Kg7
{[%clk 0:04:19.6]} 27. Rd3 {[%clk 0:03:44]} 27... b5 {[%clk 0:04:18.3]} 28. b3
{[%clk 0:03:41.5]} 28... bxc4 {[%clk 0:04:17.1]} 29. Bxc4 {[%clk 0:03:37.5]}
29... Bc3 {[%clk 0:04:15.8]} 30. g3 {[%clk 0:03:35.4]} 30... hxg3 {[%clk
0:04:14.4]} 31. Rxg3 {[%clk 0:03:34.2]} 31... a5 {[%clk 0:04:13.1]} 32. f5
{[%clk 0:03:30.5]} 32... Rxe5 {[%clk 0:04:10.9]} 33. fxg6 {[%clk 0:03:28.8]}
33... fxg6 {[%clk 0:04:09.8]} 34. Rf7+ {[%clk 0:03:23.4]} 34... Kh6 {[%clk
0:04:08.6]} 35. Rf6 {[%clk 0:03:21.4]} 35... Rg5 {[%clk 0:03:44.1]} 36. Rgf3
{[%clk 0:03:11.5]} 36... Rg2+ {[%clk 0:03:42.7]} 37. Kd3 {[%clk 0:03:04.2]}
37... Re8 {[%clk 0:03:40.7]} 38. Bf7 {[%clk 0:02:59.4]} 38... Rd2+ {[%clk
0:03:31.9]} 39. Kc4 {[%clk 0:02:58.1]} 39... Re5 {[%clk 0:03:28.3]} 40. Rg3
{[%clk 0:02:53]} 40... Rg5 {[%clk 0:03:26.3]} 41. Rgf3 {[%clk 0:02:51.6]} 41...
Rc2 {[%clk 0:03:23.6]} 42. Kb5 {[%clk 0:02:49]} 42... d3 {[%clk 0:03:21.5]} 43.
Rxd3 {[%clk 0:02:45]} 43... Bxf6 {[%clk 0:03:20.2]} 0-1

[Event "Live Chess"]
[Site "Chess.com"]
[Date "2023.05.21"]
[Round "-"]
[White "worldchessleaguelive"]
[Black "blowerd"]
[Result "1/2-1/2"]
[WhiteElo "1386"]
[BlackElo "1360"]
[TimeControl "300"]
[EndTime "18:27:51 PDT"]
[Termination "Game drawn by repetition"]

1. d4 {[%clk 0:04:58.7]} 1... d5 {[%clk 0:04:51]} 2. Bf4 {[%clk 0:04:56.6]} 2...
Nc6 {[%clk 0:04:48.6]} 3. Nf3 {[%clk 0:04:48]} 3... Nf6 {[%clk 0:04:47.3]} 4. e3
{[%clk 0:04:44.2]} 4... e6 {[%clk 0:04:44.4]} 5. Be2 {[%clk 0:04:41.4]} 5... Be7
{[%clk 0:04:42.7]} 6. O-O {[%clk 0:04:38.5]} 6... O-O {[%clk 0:04:41]} 7. Nbd2
{[%clk 0:04:36.8]} 7... Bd6 {[%clk 0:04:34.1]} 8. Bxd6 {[%clk 0:04:35.3]} 8...
Qxd6 {[%clk 0:04:32.8]} 9. h3 {[%clk 0:04:35]} 9... Ne4 {[%clk 0:04:28.2]} 10.
Nxe4 {[%clk 0:04:33.5]} 10... dxe4 {[%clk 0:04:26.3]} 11. Nd2 {[%clk 0:04:31.8]}
11... f5 {[%clk 0:04:18]} 12. Bc4 {[%clk 0:04:29.2]} 12... Rf6 {[%clk
0:04:14.9]} 13. Bb3 {[%clk 0:04:27.3]} 13... Rg6 {[%clk 0:04:13.2]} 14. Nc4
{[%clk 0:04:24.4]} 14... Qe7 {[%clk 0:04:05.8]} 15. Ne5 {[%clk 0:04:13.2]} 15...
Nxe5 {[%clk 0:04:02.1]} 16. dxe5 {[%clk 0:04:12.5]} 16... Qg5 {[%clk 0:04:01]}
17. g3 {[%clk 0:04:04]} 17... Qh6 {[%clk 0:03:45.7]} 18. Kh2 {[%clk 0:04:02.3]}
18... c6 {[%clk 0:03:29.6]} 19. Qd6 {[%clk 0:03:52.3]} 19... Bd7 {[%clk
0:03:05.5]} 20. Qxd7 {[%clk 0:03:49.4]} 20... Rf8 {[%clk 0:03:03.2]} 21. Qxb7
{[%clk 0:03:44.1]} 21... f4 {[%clk 0:03:01.9]} 22. exf4 {[%clk 0:03:36.3]} 22...
Qh5 {[%clk 0:02:52.5]} 23. Qxc6 {[%clk 0:03:32.9]} 23... Qf3 {[%clk 0:02:50.8]}
24. Bxe6+ {[%clk 0:03:27.5]} 24... Kh8 {[%clk 0:02:47.9]} 25. f5 {[%clk
0:03:05.9]} 25... Rh6 {[%clk 0:02:42.8]} 26. Qc3 {[%clk 0:02:58.7]} 26... Qg4
{[%clk 0:02:38.4]} 27. h4 {[%clk 0:02:32.8]} 27... e3 {[%clk 0:02:11.6]} 28. Qc5
{[%clk 0:02:27.9]} 28... Rxh4+ {[%clk 0:01:48]} 29. gxh4 {[%clk 0:02:15.7]}
29... Qxh4+ {[%clk 0:01:45]} 30. Kg2 {[%clk 0:02:14.5]} 30... Qg4+ {[%clk
0:01:42.2]} 31. Kh2 {[%clk 0:02:09.3]} 31... Qh4+ {[%clk 0:01:38.1]} 32. Kg1
{[%clk 0:02:08]} 32... Qg4+ {[%clk 0:01:32]} 33. Kh1 {[%clk 0:02:05.3]} 33...
Qh3+ {[%clk 0:01:25.2]} 34. Kg1 {[%clk 0:02:03.1]} 34... Qg4+ {[%clk 0:01:23.1]}
35. Kh2 {[%clk 0:02:02]} 35... Qh4+ {[%clk 0:01:20.5]} 1/2-1/2

[Event "Live Chess"]
[Site "Chess.com"]
[Date "2023.05.21"]
[Round "-"]
[White "chessfiction"]
[Black "jimwad"]
[Result "1-0"]
[WhiteElo "2345"]
[BlackElo "1247"]
[TimeControl "300"]
[EndTime "18:27:54 PDT"]
[Termination "chessfiction won by checkmate"]

1. e4 {[%clk 0:04:59.8]} 1... e5 {[%clk 0:04:57.2]} 2. d4 {[%clk 0:04:59.7]}
2... exd4 {[%clk 0:04:55.6]} 3. c3 {[%clk 0:04:59.2]} 3... dxc3 {[%clk
0:04:54.4]} 4. Nxc3 {[%clk 0:04:59.1]} 4... Nc6 {[%clk 0:04:53.3]} 5. Bc4 {[%clk
0:04:58.5]} 5... Nf6 {[%clk 0:04:51.7]} 6. Qb3 {[%clk 0:04:57.9]} 6... Qe7
{[%clk 0:04:49.5]} 7. Nf3 {[%clk 0:04:56.5]} 7... g6 {[%clk 0:04:45.4]} 8. Bg5
{[%clk 0:04:54.1]} 8... Bg7 {[%clk 0:04:44.2]} 9. O-O-O {[%clk 0:04:53.2]} 9...
O-O {[%clk 0:04:43.2]} 10. Nd5 {[%clk 0:04:52.1]} 10... Qd6 {[%clk 0:04:35.6]}
11. Nxf6+ {[%clk 0:04:50.1]} 11... Qxf6 {[%clk 0:04:31.8]} 12. Bxf6 {[%clk
0:04:48.5]} 12... Bxf6 {[%clk 0:04:30.9]} 13. h4 {[%clk 0:04:46.3]} 13... Bg7
{[%clk 0:04:29.1]} 14. h5 {[%clk 0:04:45.6]} 14... gxh5 {[%clk 0:04:27.3]} 15.
Ng5 {[%clk 0:04:43.6]} 15... Ne5 {[%clk 0:04:23]} 16. Rxh5 {[%clk 0:04:41.6]}
16... Nxc4 {[%clk 0:04:20.7]} 17. Qxc4 {[%clk 0:04:41.5]} 17... c6 {[%clk
0:04:18.8]} 18. Rxh7 {[%clk 0:04:37.6]} 18... d5 {[%clk 0:04:15.7]} 19. exd5
{[%clk 0:04:33.2]} 19... cxd5 {[%clk 0:04:10.1]} 20. Qh4 {[%clk 0:04:30.8]}
20... f6 {[%clk 0:03:59.9]} 21. Rh8+ {[%clk 0:04:28]} 21... Bxh8 {[%clk
0:03:57.1]} 22. Qh7# {[%clk 0:04:27.9]} 1-0

[Event "Live Chess"]
[Site "Chess.com"]
[Date "2023.05.21"]
[Round "-"]
[White "LanceMaster23"]
[Black "grillage"]
[Result "1-0"]
[WhiteElo "1942"]
[BlackElo "1798"]
[TimeControl "300"]
[EndTime "18:28:15 PDT"]
[Termination "LanceMaster23 won on time"]

1. Nf3 {[%clk 0:04:58.8]} 1... Nf6 {[%clk 0:04:58.1]} 2. d4 {[%clk 0:04:58.3]}
2... e6 {[%clk 0:04:56.3]} 3. Bf4 {[%clk 0:04:48.8]} 3... b6 {[%clk 0:04:52.5]}
4. e3 {[%clk 0:04:48]} 4... Bb7 {[%clk 0:04:51.9]} 5. Be2 {[%clk 0:04:47.4]}
5... Be7 {[%clk 0:04:49.9]} 6. Nbd2 {[%clk 0:04:46.6]} 6... Ne4 {[%clk
0:04:48.1]} 7. c3 {[%clk 0:04:43.7]} 7... d6 {[%clk 0:04:45.9]} 8. Qc2 {[%clk
0:04:41.7]} 8... f5 {[%clk 0:04:42.6]} 9. Nxe4 {[%clk 0:04:40.8]} 9... Bxe4
{[%clk 0:04:39.5]} 10. Qb3 {[%clk 0:04:38.8]} 10... Bd5 {[%clk 0:04:05.5]} 11.
Bc4 {[%clk 0:04:09.2]} 11... Bxc4 {[%clk 0:04:00.1]} 12. Qxc4 {[%clk 0:04:09.1]}
12... Qd7 {[%clk 0:03:45.3]} 13. O-O-O {[%clk 0:03:58.7]} 13... Nc6 {[%clk
0:03:36.7]} 14. d5 {[%clk 0:03:43.3]} 14... Na5 {[%clk 0:03:33.7]} 15. dxe6
{[%clk 0:03:42]} 15... Nxc4 {[%clk 0:03:29]} 16. exd7+ {[%clk 0:03:40.7]} 16...
Kxd7 {[%clk 0:03:28.2]} 17. b3 {[%clk 0:03:31.1]} 17... Na5 {[%clk 0:03:22.9]}
18. Rd5 {[%clk 0:03:11.7]} 18... g6 {[%clk 0:03:16]} 19. Rhd1 {[%clk 0:03:08.6]}
19... Nb7 {[%clk 0:03:02.5]} 20. Ne5+ {[%clk 0:03:06.2]} 20... Ke6 {[%clk
0:02:53.9]} 21. Nc6 {[%clk 0:02:59.4]} 21... Bf6 {[%clk 0:02:51.3]} 22. c4
{[%clk 0:02:53.3]} 22... Nc5 {[%clk 0:02:44.8]} 23. f3 {[%clk 0:02:17.6]} 23...
a5 {[%clk 0:02:41.4]} 24. Nd4+ {[%clk 0:01:57.9]} 24... Kf7 {[%clk 0:02:26.7]}
25. Nb5 {[%clk 0:01:44.9]} 25... Ne6 {[%clk 0:02:20]} 26. Bg3 {[%clk 0:01:22.7]}
26... c6 {[%clk 0:02:11.5]} 27. Nxd6+ {[%clk 0:01:05.9]} 27... Kg7 {[%clk
0:01:59.1]} 28. R5d2 {[%clk 0:00:57.8]} 28... Nc5 {[%clk 0:01:43.7]} 29. e4
{[%clk 0:00:49.7]} 29... fxe4 {[%clk 0:01:38.1]} 30. Nxe4 {[%clk 0:00:48.4]}
30... Nxe4 {[%clk 0:01:36.6]} 31. fxe4 {[%clk 0:00:48.3]} 31... Rhe8 {[%clk
0:01:34.4]} 32. Rd7+ {[%clk 0:00:43.6]} 32... Kh6 {[%clk 0:01:31.5]} 33. Re1
{[%clk 0:00:37]} 33... Rad8 {[%clk 0:01:12.1]} 34. Rxd8 {[%clk 0:00:32.4]} 34...
Rxd8 {[%clk 0:01:11.1]} 35. e5 {[%clk 0:00:32]} 35... Bg5+ {[%clk 0:01:09.4]}
36. Kc2 {[%clk 0:00:26.5]} 36... Kg7 {[%clk 0:01:01.3]} 37. Rd1 {[%clk
0:00:23.3]} 37... Rxd1 {[%clk 0:00:54.6]} 38. Kxd1 {[%clk 0:00:23.2]} 38... Kf7
{[%clk 0:00:53.3]} 39. Ke2 {[%clk 0:00:19.6]} 39... Ke6 {[%clk 0:00:52.3]} 40.
Kd3 {[%clk 0:00:18.3]} 40... Bd8 {[%clk 0:00:35.7]} 41. Ke4 {[%clk 0:00:17]}
41... Bc7 {[%clk 0:00:34.6]} 42. h4 {[%clk 0:00:15.6]} 42... h5 {[%clk
0:00:32.5]} 43. Bf4 {[%clk 0:00:14.7]} 43... Bb8 {[%clk 0:00:30.1]} 44. g3
{[%clk 0:00:13.7]} 44... Bc7 {[%clk 0:00:29.3]} 45. a3 {[%clk 0:00:12.6]} 45...
Bb8 {[%clk 0:00:22.5]} 46. b4 {[%clk 0:00:11.6]} 46... axb4 {[%clk 0:00:21.3]}
47. axb4 {[%clk 0:00:10.2]} 47... Bc7 {[%clk 0:00:20.7]} 48. b5 {[%clk
0:00:07.7]} 48... cxb5 {[%clk 0:00:17]} 49. cxb5 {[%clk 0:00:06.6]} 49... Bb8
{[%clk 0:00:16]} 50. Kd4 {[%clk 0:00:06.1]} 50... Bc7 {[%clk 0:00:14.8]} 51. Ke4
{[%clk 0:00:05.3]} 51... Bb8 {[%clk 0:00:14]} 52. Be3 {[%clk 0:00:05]} 52...
Bxe5 {[%clk 0:00:12.5]} 53. Bxb6 {[%clk 0:00:04.5]} 53... Bxg3 {[%clk
0:00:11.8]} 54. Bd8 {[%clk 0:00:02.5]} 54... Bf2 {[%clk 0:00:06.4]} 55. b6
{[%clk 0:00:02]} 55... Bg3 {[%clk 0:00:05.1]} 56. b7 {[%clk 0:00:01.5]} 56...
Bb8 {[%clk 0:00:03.4]} 57. Bg5 {[%clk 0:00:01.4]} 57... Kd7 {[%clk 0:00:01.7]}
58. Bf4 {[%clk 0:00:01.3]} 58... Kc6 {[%clk 0:00:00.2]} 59. Bxb8 {[%clk
0:00:00.4]} 1-0

[Event "Live Chess"]
[Site "Chess.com"]
[Date "2023.05.21"]
[Round "-"]
[White "xx_blindpuffin_xx"]
[Black "nigelst"]
[Result "1-0"]
[WhiteElo "2206"]
[BlackElo "1766"]
[TimeControl "300"]
[EndTime "18:28:15 PDT"]
[Termination "xx_blindpuffin_xx won by resignation"]

1. d4 {[%clk 0:04:58.1]} 1... Nf6 {[%clk 0:04:58.2]} 2. Bf4 {[%clk 0:04:57.2]}
2... e6 {[%clk 0:04:57.2]} 3. e3 {[%clk 0:04:55.6]} 3... c5 {[%clk 0:04:56.7]}
4. Nf3 {[%clk 0:04:54.5]} 4... b6 {[%clk 0:04:55.8]} 5. h3 {[%clk 0:04:50.6]}
5... Bb7 {[%clk 0:04:54.5]} 6. Be2 {[%clk 0:04:49.6]} 6... Nd5 {[%clk
0:04:52.7]} 7. Bh2 {[%clk 0:04:47.1]} 7... cxd4 {[%clk 0:04:47.9]} 8. exd4
{[%clk 0:04:45.1]} 8... Be7 {[%clk 0:04:43.8]} 9. O-O {[%clk 0:04:41]} 9... O-O
{[%clk 0:04:42.6]} 10. c4 {[%clk 0:04:39.4]} 10... Nb4 {[%clk 0:04:40.2]} 11. a3
{[%clk 0:04:34.5]} 11... N4c6 {[%clk 0:04:36.8]} 12. d5 {[%clk 0:04:29.2]} 12...
exd5 {[%clk 0:04:35.1]} 13. cxd5 {[%clk 0:04:28.9]} 13... Na5 {[%clk 0:04:31.9]}
14. b4 {[%clk 0:04:28.3]} 14... Bf6 {[%clk 0:04:20]} 15. Ra2 {[%clk 0:04:26.6]}
15... Nac6 {[%clk 0:04:10.8]} 16. dxc6 {[%clk 0:04:25]} 16... Bxc6 {[%clk
0:04:09.8]} 17. Nd4 {[%clk 0:04:10.8]} 17... Bd5 {[%clk 0:04:06.6]} 18. Rd2
{[%clk 0:04:06.4]} 18... Nc6 {[%clk 0:03:58.2]} 19. Nb5 {[%clk 0:03:57.4]} 19...
Be6 {[%clk 0:03:53.6]} 20. Bd6 {[%clk 0:03:54.6]} 20... Re8 {[%clk 0:03:50.9]}
21. Nc7 {[%clk 0:03:51.8]} 21... Bh4 {[%clk 0:03:36.9]} 22. Nxe8 {[%clk
0:03:46.1]} 22... Qxe8 {[%clk 0:03:35.7]} 23. Bf3 {[%clk 0:03:44.7]} 23... Rc8
{[%clk 0:03:28.6]} 24. Re1 {[%clk 0:03:37.1]} 24... f6 {[%clk 0:03:26.2]} 25.
Bg3 {[%clk 0:03:29.4]} 25... Bxg3 {[%clk 0:03:22.9]} 26. fxg3 {[%clk 0:03:29.3]}
26... Qg6 {[%clk 0:03:21.5]} 27. Kh2 {[%clk 0:03:26.7]} 27... Ne5 {[%clk
0:03:14.9]} 28. Be4 {[%clk 0:03:17.6]} 28... Qh6 {[%clk 0:03:11.2]} 29. Bd5
{[%clk 0:03:11.4]} 29... Ng4+ {[%clk 0:03:07.7]} 30. Qxg4 {[%clk 0:03:07.5]}
30... Kh8 {[%clk 0:02:59.1]} 31. Bxe6 {[%clk 0:03:05]} 1-0

[Event "Live Chess"]
[Site "Chess.com"]
[Date "2023.05.21"]
[Round "-"]
[White "Tushinskiy"]
[Black "wot-not"]
[Result "1-0"]
[WhiteElo "2177"]
[BlackElo "1541"]
[TimeControl "300"]
[EndTime "18:28:40 PDT"]
[Termination "Tushinskiy won by resignation"]

1. d4 {[%clk 0:04:57.5]} 1... Nf6 {[%clk 0:04:58.7]} 2. c3 {[%clk 0:04:56.6]}
2... g6 {[%clk 0:04:57.7]} 3. Bf4 {[%clk 0:04:54.6]} 3... c5 {[%clk 0:04:56.7]}
4. e3 {[%clk 0:04:52.9]} 4... cxd4 {[%clk 0:04:56]} 5. exd4 {[%clk 0:04:51.8]}
5... Bg7 {[%clk 0:04:55.2]} 6. Nf3 {[%clk 0:04:50.6]} 6... d6 {[%clk 0:04:54]}
7. Bd3 {[%clk 0:04:50]} 7... Bg4 {[%clk 0:04:52.8]} 8. Nbd2 {[%clk 0:04:49.1]}
8... Nbd7 {[%clk 0:04:51.3]} 9. O-O {[%clk 0:04:47.9]} 9... O-O {[%clk 0:04:50]}
10. Qb1 {[%clk 0:04:42.3]} 10... Nd5 {[%clk 0:04:44.8]} 11. Bg3 {[%clk
0:04:41.1]} 11... h5 {[%clk 0:04:43.1]} 12. h3 {[%clk 0:04:38.7]} 12... Bxf3
{[%clk 0:04:38.6]} 13. Nxf3 {[%clk 0:04:38.6]} 13... N7f6 {[%clk 0:04:26.9]} 14.
Re1 {[%clk 0:04:36.8]} 14... e6 {[%clk 0:04:23.5]} 15. a3 {[%clk 0:04:33]} 15...
Ne7 {[%clk 0:04:22.6]} 16. Qa2 {[%clk 0:04:28.2]} 16... Nf5 {[%clk 0:04:19.5]}
17. Bxf5 {[%clk 0:04:27.5]} 17... exf5 {[%clk 0:04:18.7]} 18. Rad1 {[%clk
0:04:22.6]} 18... Ne4 {[%clk 0:04:17.1]} 19. Bh2 {[%clk 0:04:20.5]} 19... Rc8
{[%clk 0:03:58.7]} 20. Nd2 {[%clk 0:04:16.3]} 20... d5 {[%clk 0:03:52.2]} 21. f3
{[%clk 0:04:14.6]} 21... Nxd2 {[%clk 0:03:43.3]} 22. Rxd2 {[%clk 0:04:14.5]}
22... Re8 {[%clk 0:03:42]} 23. Rde2 {[%clk 0:04:12.1]} 23... Rxe2 {[%clk
0:03:40.5]} 24. Rxe2 {[%clk 0:04:12]} 24... Qd7 {[%clk 0:03:39.3]} 25. Kf1
{[%clk 0:04:10.7]} 25... Kf8 {[%clk 0:03:32.4]} 26. Qb3 {[%clk 0:04:08.4]} 26...
b6 {[%clk 0:03:30.7]} 27. Be5 {[%clk 0:04:01.3]} 27... f6 {[%clk 0:03:17.3]} 28.
Bh2 {[%clk 0:03:58.5]} 28... Re8 {[%clk 0:03:15.1]} 29. Qb4+ {[%clk 0:03:56.1]}
29... Kf7 {[%clk 0:03:09]} 30. Rxe8 {[%clk 0:03:48.1]} 30... Kxe8 {[%clk
0:03:06.8]} 31. Qb3 {[%clk 0:03:46.2]} 31... Bf8 {[%clk 0:03:03.5]} 32. Bg3
{[%clk 0:03:43.4]} 32... Kf7 {[%clk 0:03:00.5]} 33. Ke2 {[%clk 0:03:36]} 33...
Qe6+ {[%clk 0:02:59.7]} 34. Kd3 {[%clk 0:03:34.2]} 34... Bd6 {[%clk 0:02:58.4]}
35. Bf2 {[%clk 0:03:33.3]} 35... f4 {[%clk 0:02:50.9]} 36. Qa4 {[%clk
0:03:28.4]} 36... Qf5+ {[%clk 0:02:48.7]} 37. Kd2 {[%clk 0:03:27.2]} 37... Bb8
{[%clk 0:02:37.4]} 38. Qc6 {[%clk 0:03:12.9]} 38... Ke7 {[%clk 0:02:32.8]} 39.
Qb7+ {[%clk 0:03:10]} 39... Ke6 {[%clk 0:02:22.1]} 40. Qxb8 {[%clk 0:03:05.3]}
40... Qb1 {[%clk 0:02:21.7]} 41. Qe8+ {[%clk 0:02:56.3]} 41... Kf5 {[%clk
0:02:20]} 42. Qa4 {[%clk 0:02:50]} 42... Qxb2+ {[%clk 0:02:17.5]} 43. Qc2+
{[%clk 0:02:49.2]} 43... Qxc2+ {[%clk 0:02:15.9]} 44. Kxc2 {[%clk 0:02:49.1]}
44... g5 {[%clk 0:02:15]} 45. Kb3 {[%clk 0:02:44.4]} 45... Ke6 {[%clk
0:02:14.2]} 46. Kb4 {[%clk 0:02:42.1]} 46... f5 {[%clk 0:02:13.6]} 47. Kb5
{[%clk 0:02:41.5]} 47... g4 {[%clk 0:02:12.6]} 48. Ka6 {[%clk 0:02:40]} 1-0

[Event "Live Chess"]
[Site "Chess.com"]
[Date "2023.05.21"]
[Round "-"]
[White "ClassyChameleon"]
[Black "romchyk1219"]
[Result "1/2-1/2"]
[WhiteElo "1092"]
[BlackElo "640"]
[TimeControl "300"]
[EndTime "18:28:42 PDT"]
[Termination "Game drawn by stalemate"]

1. e4 {[%clk 0:04:57.1]} 1... d6 {[%clk 0:04:59.1]} 2. d4 {[%clk 0:04:55.2]}
2... Nf6 {[%clk 0:04:58.5]} 3. Nc3 {[%clk 0:04:53.5]} 3... g6 {[%clk 0:04:57.9]}
4. Nf3 {[%clk 0:04:50.2]} 4... Bg7 {[%clk 0:04:57.4]} 5. Ng5 {[%clk 0:04:48.9]}
5... O-O {[%clk 0:04:56.3]} 6. Bc4 {[%clk 0:04:44.5]} 6... Nc6 {[%clk
0:04:53.7]} 7. d5 {[%clk 0:04:42.6]} 7... Ne5 {[%clk 0:04:51.4]} 8. Bb3 {[%clk
0:04:40.5]} 8... Bg4 {[%clk 0:04:46.4]} 9. f3 {[%clk 0:04:32.4]} 9... Bd7 {[%clk
0:04:44.7]} 10. O-O {[%clk 0:04:28.4]} 10... h6 {[%clk 0:04:42]} 11. Nh3 {[%clk
0:04:26.2]} 11... Bxh3 {[%clk 0:04:39.5]} 12. gxh3 {[%clk 0:04:25.8]} 12... c6
{[%clk 0:04:32.8]} 13. f4 {[%clk 0:04:21.7]} 13... Ned7 {[%clk 0:04:29]} 14. f5
{[%clk 0:04:12.7]} 14... gxf5 {[%clk 0:04:24.7]} 15. exf5 {[%clk 0:04:12]} 15...
Ne5 {[%clk 0:04:23]} 16. dxc6 {[%clk 0:04:06.4]} 16... Nxc6 {[%clk 0:04:22.9]}
17. Nd5 {[%clk 0:04:02.7]} 17... Nxd5 {[%clk 0:04:20.9]} 18. Bxd5 {[%clk
0:04:01.8]} 18... Qb6+ {[%clk 0:04:16.1]} 19. Kh1 {[%clk 0:03:53.1]} 19... Bxb2
{[%clk 0:04:02.7]} 20. Bxb2 {[%clk 0:03:50.4]} 20... Qxb2 {[%clk 0:04:02.2]} 21.
Bxc6 {[%clk 0:03:47.1]} 21... bxc6 {[%clk 0:04:00.2]} 22. Qg4+ {[%clk
0:03:43.5]} 22... Kh7 {[%clk 0:03:54.6]} 23. Qe4 {[%clk 0:03:36.6]} 23... Rae8
{[%clk 0:03:42.8]} 24. f6+ {[%clk 0:03:31.5]} 24... Kg8 {[%clk 0:03:39.8]} 25.
Rg1+ {[%clk 0:03:21.5]} 25... Kh8 {[%clk 0:03:37.4]} 26. Qh4 {[%clk 0:03:15.5]}
26... Qxf6 {[%clk 0:03:32.1]} 27. Qa4 {[%clk 0:03:00.4]} 27... Rc8 {[%clk
0:03:15.4]} 28. Qxa7 {[%clk 0:02:55.5]} 28... Rg8 {[%clk 0:03:09.7]} 29. Qa6
{[%clk 0:02:39.4]} 29... Rxg1+ {[%clk 0:02:56.2]} 30. Rxg1 {[%clk 0:02:36.7]}
30... Rg8 {[%clk 0:02:50.7]} 31. Qxc6 {[%clk 0:02:21.6]} 31... Rxg1+ {[%clk
0:02:48.3]} 32. Kxg1 {[%clk 0:02:19.9]} 32... Qd4+ {[%clk 0:02:43.3]} 33. Kh1
{[%clk 0:02:16.1]} 33... Qf2 {[%clk 0:02:35.1]} 34. Qc3+ {[%clk 0:02:11.6]}
34... Kh7 {[%clk 0:02:31.7]} 35. Qd3+ {[%clk 0:02:08.8]} 35... Kg7 {[%clk
0:02:28.5]} 36. Qg3+ {[%clk 0:02:05.4]} 36... Qxg3 {[%clk 0:02:27.4]} 37. hxg3
{[%clk 0:02:04.8]} 37... Kg6 {[%clk 0:02:26.4]} 38. Kg2 {[%clk 0:02:04.4]} 38...
h5 {[%clk 0:02:25.8]} 39. a4 {[%clk 0:02:02.9]} 39... Kf6 {[%clk 0:02:24.1]} 40.
a5 {[%clk 0:02:02.5]} 40... Ke6 {[%clk 0:02:23.2]} 41. a6 {[%clk 0:02:02.2]}
41... Kd7 {[%clk 0:02:22]} 42. a7 {[%clk 0:02:01.9]} 42... Ke6 {[%clk
0:02:21.6]} 43. a8=Q {[%clk 0:02:01.3]} 43... Kf5 {[%clk 0:02:21.5]} 44. Qa5+
{[%clk 0:01:59.8]} 44... Kg6 {[%clk 0:02:20.5]} 45. h4 {[%clk 0:01:58.1]} 45...
f5 {[%clk 0:02:18]} 46. c4 {[%clk 0:01:55.5]} 46... e5 {[%clk 0:02:16.9]} 47.
Qc7 {[%clk 0:01:53.3]} 47... f4 {[%clk 0:02:16.4]} 48. Qxd6+ {[%clk 0:01:52.2]}
48... Kf5 {[%clk 0:02:14.7]} 49. gxf4 {[%clk 0:01:48.5]} 49... exf4 {[%clk
0:02:10.6]} 50. Kf3 {[%clk 0:01:48.1]} 1/2-1/2

[Event "Live Chess"]
[Site "Chess.com"]
[Date "2023.05.21"]
[Round "-"]
[White "calcina"]
[Black "domrobson"]
[Result "1-0"]
[WhiteElo "1570"]
[BlackElo "1747"]
[TimeControl "300"]
[EndTime "18:28:54 PDT"]
[Termination "calcina won by resignation"]

1. e4 {[%clk 0:04:57.8]} 1... e5 {[%clk 0:04:59.3]} 2. Nf3 {[%clk 0:04:55.5]}
2... Nc6 {[%clk 0:04:58.3]} 3. Bc4 {[%clk 0:04:52.1]} 3... Nf6 {[%clk
0:04:57.3]} 4. O-O {[%clk 0:04:40.1]} 4... Bc5 {[%clk 0:04:51.5]} 5. d4 {[%clk
0:04:37.6]} 5... Bxd4 {[%clk 0:04:49.5]} 6. Nxd4 {[%clk 0:04:34.2]} 6... Nxd4
{[%clk 0:04:48.5]} 7. Bg5 {[%clk 0:04:30]} 7... h6 {[%clk 0:04:46.6]} 8. Bh4
{[%clk 0:04:27.7]} 8... d6 {[%clk 0:04:45.8]} 9. f4 {[%clk 0:04:23.8]} 9... c6
{[%clk 0:04:31]} 10. fxe5 {[%clk 0:04:10.4]} 10... dxe5 {[%clk 0:04:29.9]} 11.
c3 {[%clk 0:04:05.2]} 11... Ne6 {[%clk 0:04:19.9]} 12. Bxf6 {[%clk 0:03:59.2]}
12... gxf6 {[%clk 0:04:18.4]} 13. Qf3 {[%clk 0:03:46]} 13... Nf4 {[%clk
0:04:10.7]} 14. g3 {[%clk 0:03:34.2]} 14... Rg8 {[%clk 0:04:04.5]} 15. Kh1
{[%clk 0:03:29.7]} 15... Bh3 {[%clk 0:04:03.6]} 16. Rf2 {[%clk 0:03:16.9]} 16...
Qb6 {[%clk 0:03:52.4]} 17. gxf4 {[%clk 0:03:06.1]} 17... O-O-O {[%clk
0:03:50.8]} 1-0